{"text_format":"1","workbook":"xlsx","n_sheets":4,"sheets":["Anexo B-02-02 PAC","Hoja3","Tabla_1998","Entidades"],"not_rendered":{"charts":0,"images":1,"macros":1,"external_links":1,"defined_names":5,"comments":0,"pivot_tables":0},"unopened":[],"bounds":{"document_bytes":16777216,"sheet_cells":100000,"rows_first":2000,"rows_last":500,"rows_between":2000,"halvings":0,"cell_chars":16384,"cell_head_chars":4096},"cells_cut":0,"cells_raw":0,"read":"whole","date_system":"1900"}

{"sheet":"Anexo B-02-02 PAC","index":0,"n_rows":98,"n_cols":17,"rows_kept":98,"cut":false,"hidden":false,"merged":[[4,15,4,16],[95,11,95,15],[94,11,94,15],[5,7,5,11],[29,8,29,10],[30,5,30,7],[30,8,30,10],[30,11,30,12],[30,13,30,15],[35,12,35,13],[36,12,36,13],[37,12,37,13],[38,12,38,13],[36,14,36,15],[34,12,34,13],[34,4,34,11],[29,3,29,4],[24,8,24,11],[95,3,95,7],[94,3,94,7],[37,14,37,15],[38,14,38,15],[41,14,41,15],[40,14,40,15],[41,12,41,13],[40,12,40,13],[44,8,44,9],[44,10,44,11],[44,12,44,13],[52,4,52,5],[52,6,52,7],[50,8,50,9],[51,8,51,9],[52,8,52,9],[45,10,45,11],[46,10,46,11],[47,10,47,11],[48,10,48,11],[49,10,49,11],[50,10,50,11],[45,12,45,13],[46,12,46,13],[46,8,46,9],[47,8,47,9],[48,8,48,9],[49,8,49,9],[50,12,50,13],[51,12,51,13],[39,14,39,15],[39,12,39,13],[23,3,23,6],[10,2,10,16],[11,2,11,16],[14,2,14,3],[21,1,21,17],[54,1,54,17],[25,3,25,4],[26,3,26,4],[26,5,26,6],[25,5,25,6],[29,5,29,7],[23,8,23,11],[29,11,29,12],[29,13,29,15],[28,2,28,16],[35,14,35,15],[34,14,34,15],[33,12,33,16],[32,12,32,16],[51,10,51,11],[45,8,45,9],[52,10,52,11],[52,12,52,13],[65,12,65,16],[66,3,66,11],[66,12,66,16],[57,3,57,6],[58,8,58,9],[47,12,47,13],[48,12,48,13],[49,12,49,13],[67,4,67,11],[67,12,67,13],[67,14,67,15],[63,3,63,4],[63,5,63,7],[63,8,63,10],[63,11,63,12],[63,13,63,15],[71,12,71,13],[71,14,71,15],[68,2,68,3],[69,2,69,3],[70,2,70,3],[71,2,71,3],[72,12,72,13],[72,14,72,15],[73,12,73,13],[73,14,73,15],[68,12,68,13],[68,14,68,15],[69,12,69,13],[69,14,69,15],[70,12,70,13],[70,14,70,15],[78,8,78,9],[78,10,78,11],[78,12,78,13],[74,12,74,13],[74,14,74,15],[77,8,77,9],[77,10,77,11],[77,12,77,13],[78,4,78,7],[82,4,82,7],[83,4,83,7],[80,8,80,9],[80,10,80,11],[80,12,80,13],[79,8,79,9],[79,10,79,11],[79,12,79,13],[79,4,79,7],[80,4,80,7],[83,8,83,9],[83,10,83,11],[83,12,83,13],[81,8,81,9],[81,10,81,11],[81,12,81,13],[82,8,82,9],[82,10,82,11],[82,12,82,13],[44,4,44,7],[45,4,45,7],[47,4,47,7],[48,4,48,7],[49,4,49,7],[50,4,50,7],[51,4,51,7],[46,4,46,7],[77,4,77,7],[65,2,65,11],[59,3,59,4],[59,5,59,6],[59,8,59,9],[61,2,61,16],[62,3,62,4],[62,5,62,7],[62,8,62,10],[62,11,62,12],[62,13,62,15],[56,3,56,6],[56,8,56,11],[57,8,57,11],[58,3,58,4],[58,5,58,6],[15,2,15,3],[16,2,16,3],[17,2,17,3],[18,2,18,3],[19,2,19,3],[14,4,14,13],[15,4,15,13],[16,4,16,13],[17,4,17,13],[18,4,18,13],[19,4,19,13],[24,3,24,6],[35,2,35,3],[36,2,36,3],[37,2,37,3],[38,2,38,3],[39,2,39,3],[40,2,40,3],[41,2,41,3],[35,4,35,11],[36,4,36,11],[37,4,37,11],[38,4,38,11],[39,4,39,11],[40,4,40,11],[41,4,41,11],[25,8,25,9],[26,8,26,9],[32,2,32,11],[33,3,33,11],[30,3,30,4],[97,2,97,3],[72,2,72,3],[73,2,73,3],[74,2,74,3],[68,4,68,11],[69,4,69,11],[70,4,70,11],[71,4,71,11],[72,4,72,11],[73,4,73,11],[74,4,74,11],[89,1,89,17],[85,4,85,5],[85,6,85,7],[85,8,85,9],[85,10,85,11],[85,12,85,13],[84,8,84,9],[84,10,84,11],[84,12,84,13],[84,4,84,7],[87,6,87,7],[87,2,87,5],[81,4,81,7]]}
[]
[]
[]
[]
[null,null,null,null,null,null,null,null,null,null,null,null,null,null,null,"ANEXO  B-02-03"]
[]
[]
[]
[]
[]
[null,null,"REPROGRAMACIÓN DEL PROGRAMA ANUAL DE CONTRATACIONES"]
[null,null,"(Artículo 12º de la Ley Nº 2.051/2003)"]
[]
[null,null,null,null,null,null,null,null,null,null,null,null,null,null,null,null,"EJERCICIO FISCAL 2022"]
[null,null,"NIVEL DE ENTIDAD:"]
[null,null,"ENTIDAD:"]
[null,null,"UOC/UEP:"]
[null,null,"SUB UOC:"]
[null,null,"UNIDAD JERARQUICA:"]
[null,null,"CODIGO SICP:"]
[]
[null,"PROGRAMA ANUAL DE CONTRATACIONES VIGENTE"]
[]
[null,null,"Nro. PAC (ID)","MODALIDAD",null,null,null,"FECHA ESTIMADA DEL LLAMADO","OBJETO DEL LLAMADO",null,null,null,"MONEDA","PLURIANUALIDAD - (SI/NO)",null,"AD REFERENDUM - PROVISORIO (SI/NO)","MONTO TOTAL"]
[]
[null,null,"SBE ","Inc c) Decreto 5174/05",null,"FONACIDE ",null,"AGRICULTURA FAMILIAR","COMPRAS ESTRATÉGICAS"]
[null,null,"SI/NO","SI/NO",null,"SI/NO",null,"SI/NO","SI/NO"]
[]
[null,null,"MONTOS POR EJERCICIO FISCAL (En caso de no ser plurianual completar solo la casilla correspondiente al año 2022)"]
[null,null,"AÑO:",2022,null,2023,null,null,2024,null,null,2025,null,2026,null,null,2027]
[null,null,"MONTO:"]
[]
[null,null,"CATEGORÍA DEL BIEN/SERVICIO",null,null,null,null,null,null,null,null,null,"DESCRIPCIÓN DEL PAC"]
[null,null,1]
[null,null,"CODIGO CATÁLOGO",null,"DESCRIPCIÓN DEL BIEN Y/O SERVICIO",null,null,null,null,null,null,null,"PRECIO UNITARIO",null,"CANTIDAD",null,"MONTO TOTAL"]
[]
[]
[]
[]
[]
[]
[]
[null,null,null,null,null,null,null,null,null,null,null,null,null,null,null,"TOTAL: "]
[]
[null,null,"CLASE","PROGRAMA","PROYECTO/ACTIVIDAD",null,null,null,"SGOG",null,"F.F.",null,"O.F.",null,null,"DPTO.","MONTO G."]
[]
[]
[]
[]
[]
[]
[]
[null,null,null,null,null,null,null,null,null,null,null,null,null,null,null,"TOTAL: "]
[]
[null,"PROGRAMA ANUAL DE CONTRATACIONES MODIFICADO"]
[]
[null,null,"Nro. PAC (ID)","MODALIDAD",null,null,null,"FECHA ESTIMADA DEL LLAMADO","OBJETO DEL LLAMADO",null,null,null,"MONEDA","PLURIANUALIDAD - (SI/NO)",null,"AD REFERENDUM - PROVISORIO (SI/NO)","MONTO TOTAL"]
[]
[null,null,"SBE ","Inc c) Decreto 5174/05",null,"FONACIDE ",null,"AGRICULTURA FAMILIAR","COMPRAS ESTRATÉGICAS"]
[null,null,"SI/NO","SI/NO",null,"SI/NO",null,"SI/NO","SI/NO"]
[]
[null,null,"MONTOS POR EJERCICIO FISCAL (En caso de no ser plurianual completar solo la casilla correspondiente al año 2022)"]
[null,null,"AÑO:",2022,null,2023,null,null,2024,null,null,2025,null,2026,null,null,2027]
[null,null,"MONTO:"]
[]
[null,null,"CATEGORÍA DEL BIEN/SERVICIO",null,null,null,null,null,null,null,null,null,"DESCRIPCIÓN DEL PAC"]
[]
[null,null,"CODIGO CATÁLOGO",null,"DESCRIPCIÓN DEL BIEN Y/O SERVICIO",null,null,null,null,null,null,null,"PRECIO UNITARIO",null,"CANTIDAD",null,"MONTO TOTAL"]
[]
[]
[]
[]
[]
[]
[]
[null,null,null,null,null,null,null,null,null,null,null,null,null,null,null,"TOTAL: "]
[]
[null,null,"CLASE","PROGRAMA","PROYECTO/ACTIVIDAD",null,null,null,"SGOG",null,"F.F.",null,"O.F.",null,null,"DPTO.","MONTO G."]
[]
[]
[]
[]
[]
[]
[]
[null,null,null,null,null,null,null,null,null,null,null,null,null,null,null,"TOTAL: "]
[]
[null,null,"Ley que rige el convenio (Solo en caso de ser proyecto):"]
[]
[null,"JUSTIFICACIÓN DE LA MODIFICACIÓN"]
[]
[]
[]
[]
[null,null,null,"FIRMA, SELLO ",null,null,null,null,null,null,null,"FIRMA, SELLO "]
[null,null,null,"FUNCIONARIO RESPONSABLE DE LA U.O.C.",null,null,null,null,null,null,null,"MÁXIMA AUTORIDAD DE LA INSTITUCIÓN"]
[]
[null,null,"Fecha de elaboración:"]

{"sheet":"Hoja3","index":1,"n_rows":36,"n_cols":2,"rows_kept":36,"cut":false,"hidden":true,"merged":[]}
[]
[1,"LICIT. PÚB. NACIONAL"]
[2,"LICIT. PÚB. INTERNACIONAL"]
[3,"LICIT. PÚB. INTERNAC. REGION MERCOSUR"]
[4,"CONCURSO DE OFERTAS"]
[5,"CONCURSO DE OFERTAS REGION MERCOSUR"]
[6,"CONTRATACIÓN DIRECTA"]
[7,"CONTRAT. DIRECTA P/ EXCEPCIÓN"]
[]
[]
[]
[]
[]
[]
[1,"GUARANÍES"]
[2,"DÓLARES"]
[3,"OTROS"]
[]
[]
[]
[1,"PASAJES Y TRANSPORTE"]
[2,"MANTENIMIENTO DE EQUIPOS, REPUESTOS, CUBIERTAS Y SIMILARES"]
[3,"SERVICIOS EN GENERAL Y CAPACITACION"]
[4,"ALQUILERES"]
[5,"CONSULTORIA"]
[6,"SEGUROS"]
[7,"PUBLICIDAD Y PROPAGANDA"]
[8,"ALIMENTOS"]
[9,"UTILES DE OFICINA Y COMEDOR, PAPELERIA"]
[10,"MEDICAMENTOS E INSTRUMENTALES HOSPITALARIOS"]
[11,"COMBUSTIBLES Y LUBRICANTES, MINERALES"]
[12,"MUEBLES"]
[13,"CONSTRUCCIONES, MANTENIMIENTOS Y REPARACIONES"]
[14,"EQUIPOS Y MAQUINARIAS"]
[15,"INFORMATICA Y COMUNICACIONES"]
[16,"OTROS"]

{"sheet":"Tabla_1998","index":2,"n_rows":202,"n_cols":3,"rows_kept":202,"cut":false,"hidden":true,"merged":[]}
[]
[]
[]
[200,"SERVICIOS NO PERSONALES"]
[210,"SERVICIOS BASICOS"]
[211,"ENERGIA ELECTRICA"]
[212,"AGUA"]
[214,"TELEF. TELEFAX Y OTROS SERV. DE COMUNIC."]
[215,"CORREOS Y OTROS SERV. POSTALES"]
[219,"SERVICIOS BASICOS VARIOS"]
[220,"TRANSPORTE Y ALMACENAJE"]
[221,"TRANSPORTE",1]
[222,"ALMACENAJE",3]
[223,"TRANSPORTE DE PERSONAS",1]
[229,"TRANSPORTE Y ALMACENAJE VARIOS",1]
[230,"PASAJES Y VIATICOS"]
[231,"PASAJES",1]
[232,"VIATICOS Y MOVILIDAD"]
[233,"GASTOS DE TRASLADO"]
[239,"PASAJES Y VIATICOS, VARIOS"]
[240,"GASTOS P/SERV.,ASEO, MANT. Y REPARAC."]
[241,"MANT. Y REP. MEN. DE  VIAS DE COMUNIC.",13]
[242,"MANT. Y REP. MEN. DE EDIF. Y LOC.",13]
[243,"MANT. Y REP. MEN. DE MAQ. EQ. Y MUEB. DE OFIC.",2]
[244,"MANT. Y REP. MEN. DE VEHICULOS",2]
[245,"SERV. DE LIMPIEZA, ASEO Y FUMIG.",3]
[246,"MANT. Y REP. MEN. DE INSTALACIONES",13]
[247,"MANT. Y REP. MEN. DE OBRAS",13]
[248,"OTROS MANT. Y REPARAC. MENORES",2]
[249,"SERV.,ASEO, MANT. Y REPARAC. MEN., VARIOS",2]
[250,"ALQUILERES Y DERECHOS"]
[251,"ALQ. DE EDIF. Y LOCALES",4]
[252,"ALQ. DE MAQ. Y EQUIPOS",4]
[253,"DERECHOS DE BIENES INTANGIBLES",15]
[254,"ALQ. EQ. DE COMPUTACION",15]
[255,"ALQ. DE FOTOCOPIADORAS",4]
[256,"ARREND. DE TIERRAS Y TERRENOS",4]
[257,"ALQUILER DE VIVIENDAS",4]
[258,"ALQ. Y DERECHOS SIST. LEASING",4]
[259,"ALQUILERES Y DERECHOS, VARIOS",4]
[260,"SERVICIOS TECNICOS Y PROFESIONALES"]
[261,"DE INFORMATICA Y SIST. COMPUTARIZ.",15]
[262,"IMPRENTA, PUBLICACIONES Y REPROD.",3]
[263,"SERVICIOS BANCARIOS"]
[264,"PRIMAS Y GASTOS DE SEGURO",6]
[265,"PUBLICIDAD Y PROPAGANDA",7]
[266,"CONSULTORIAS, ASES. E INVESTIG.",5]
[267,"PROMOCIONES Y EXPOSICIONES",7]
[268,"SERV. DE COMUNICACIONES",15]
[269,"SERVICIOS TECNICOS Y PROF., VARIOS",3]
[270,"SERVICIO SOCIAL"]
[279,"SERVICIO SOCIAL",3]
[280,"OTROS SERVICIOS "]
[281,"SERVICIOS DE CEREMONIAL",3]
[282,"SERVICIOS DE VIGILANCIA",3]
[283,"GASTOS DE PECULIO",3]
[284,"SERVICIOS GASTRONOMICOS",3]
[288,"SERVICIOS EN GENERAL",3]
[289,"OTROS SERVICIOS, VARIOS",3]
[290,"SERV. CAPACITACION Y ADIEST."]
[291,"CAPACITACION DEL PERSONAL DEL ESTADO",3]
[292,"CAPACITACION Y FORMACION LABORAL",3]
[299,"CAPACITACION Y ADIESTRAMIENTO VARIOS",3]
[300,"BIENES DE CONSUMO"]
[310,"PRODUCTOS ALIMENTICIOS"]
[311,"ALIMENTOS PARA PERSONAS",8]
[312,"ALIMENTOS PARA ANIMALES",8]
[319,"PROD. ALIMENTICIOS VARIOS",8]
[320,"TEXTILES Y VESTUARIOS"]
[321,"HILADOS Y TELAS",16]
[322,"PRENDAS DE VESTIR",16]
[323,"CONFECCIONES TEXTILES",16]
[324,"CALZADOS",16]
[325,"CUEROS, CAUCHOS Y GOMAS",16]
[329,"TEXTILES Y CONFECCIONES, VARIOS",16]
[330,"PRODUC.PAPEL, CARTON E IMPRESOS"]
[331,"PAPEL DE ESCRITORIO Y CARTON",9]
[332,"PAPEL PARA COMPUTACION",9]
[333,"PRODUCTOS DE ARTES GRAFICAS",9]
[334,"PRODUCTOS DE PAPEL Y CARTON",9]
[335,"LIBROS, REVISTAS, PERIODICOS",9]
[336,"TEXTOS DE ENSEÑANZA",9]
[339,"PRODUC.PAPEL, CARTON E IMPRESOS, VARIOS",9]
[340,"BIENES DE CONSUMO OFIC.E INSUMOS"]
[341,"ELEMENTOS DE LIMPIEZA",9]
[342,"UTILES DE ESCRITORIO, OFIC. Y ENS.",9]
[343,"UTILES Y MATERIALES ELECTRICOS",9]
[344,"UTENSILIOS DE COCINA Y COMEDOR",9]
[345,"PROD. DE VIDRIO, LOZA Y PORCELANA",9]
[346,"REPUESTOS Y ACCESORIOS MENORES",2]
[347,"ELEMENTOS Y UTILES DIVERSOS",9]
[349,"BIENES DE CONSUMO, VARIOS",9]
[350,"PROD. E INST. QUIMICOS Y MEDICINALES"]
[351,"COMPUESTOS QUIMICOS",10]
[352,"PROD. FARMACEUT. Y MEDIC.",10]
[353,"ABONOS Y FERTILIZANTES",16]
[354,"INSECTICIDAS, FUMIGANTES Y OTROS",16]
[355,"TINTAS, PINTURAS Y COLORANTES",16]
[356,"ESPECÍFICOS VETERINARIOS",10]
[357,"PRODUCTOS DE MATERIAL PLASTICO",10]
[358,"UTILES Y MAT. MEDICO-QUIRURJICOS Y DE LAB.",10]
[359,"PROD. E INST. QUIMICOS Y MEDICINALES, VARIOS",10]
[360,"COMBUSTIBLES Y LUBRICANTES"]
[361,"COMBUSTIBLES",11]
[362,"LUBRICANTES",11]
[369,"COMBUSTIBLES Y LUBRICANTES, VARIOS",11]
[390,"OTROS BIENES DE CONSUMO"]
[391,"ARTICULOS DE CAUCHO",2]
[392,"CUBIERTAS Y CAMARAS DE AIRE",2]
[393,"ESTRUCTURAS METALICAS ACABADAS",13]
[394,"HERRAMIENTAS MENORES",14]
[395,"MATERIAL DE SEGURIDAD Y ADIEST.",16]
[396,"ARTICULOS DE PLASTICO",16]
[397,"PROD. E INSUMOS METALICOS",13]
[398,"PROD. E INSUMOS NO METALICOS",13]
[399,"BIENES DE CONSUMO, VARIOS",16]
[400,"BIENES DE CAMBIO"]
[410,"BIENES E INSUMOS DEL SECTOR AGROP. Y FORESTAL"]
[411,"ANIMALES Y PROD. PECUARIOS",16]
[412,"PROD. AGROFORESTALES",16]
[413,"MADERA, CORCHO Y SUS MANUFACTURAS",16]
[414,"PROD. E INSUMOS AGROPECUARIOS",16]
[419,"INSUMOS DEL SECTOR AGROP. Y FORESTAL, VARIOS",16]
[420,"MINERALES "]
[421,"PETROLEO CRUDO Y GAS NATURAL",11]
[422,"PIEDRA, ARCILLA, CERAMICA, ARENA Y DERIV.",13]
[423,"MINERALES METALIFEROS",11]
[424,"CARBON MINERAL",11]
[425,"CEMENTO, CAL,ASBESTO, YESO, Y SUS DERIV.",13]
[426,"PRODUCTOS FERROSOS",13]
[427,"PRODUCTOS NO FERROSOS",16]
[429,"MINERALES, VARIOS",11]
[430,"INSUMOS INDUSTRIALES "]
[439,"INSUMOS INDUSTRIALES ",16]
[440,"ENERGIA Y COMBUSTIBLES"]
[441,"ENERGIA",11]
[442,"COMBUSTIBLES",11]
[443,"LUBRICANTES",11]
[449,"ENERGIA Y COMBUSTIBLES, VARIOS",11]
[450,"TIERRAS, TERRENOS Y EDIFICACIONES"]
[451,"TIERRAS, TERRENOS Y EDIFICACIONES",16]
[459,"TIERRAS, TERRENOS Y EDIFICACIONES VARIAS",16]
[490,"OTRAS MAT. PRIMAS Y PROD. SEMIELAB."]
[491,"ESPECIES TIMBRADAS Y VALORES",9]
[492,"INSUMOS QUIMICOS Y DE LAB. INDUST.",16]
[499,"MATERIAS PRIMAS Y PROD. SEMIELAB., VARIOS",16]
[500,"INVERSION FISICA"]
[510,"ADQUISICION DE INMUEBLES"]
[511,"TIERRAS Y TERRENOS",16]
[512,"ADQ. DE EDIF. E INSTALAC.",16]
[519,"ADQ. DE INMUEBLES VARIOS",16]
[520,"CONSTRUCCIONES"]
[521,"CONST. DE OBRAS DE USO PÚBLICO",13]
[522,"CONST. DE OBRAS DE USO INSTITUC.",13]
[523,"CONST. DE OBRAS DE USO MILITAR",13]
[524,"CONST. DE OBRAS DE USO PRIVADO",13]
[525,"CONST. DE OBRAS DE INFRAESTRUCTURA",13]
[526,"OBRAS E INSTALAC. VARIAS DE INFRAEST.",13]
[529,"CONSTRUCCIONES VARIAS",13]
[530,"ADQ. DE MAQ. EQ. Y HERRAM. MAY."]
[531,"MAQ. Y EQ. DE CONSTRUCCION",14]
[532,"MAQ. Y EQ. AGROPEC. E INDUSTRIALES",14]
[533,"MAQ. Y EQ. INDUSTRIALES",14]
[534,"EQ. EDUC. Y RECREAC.",14]
[535,"EQ. DE SALUD Y LABORATORIO",10]
[536,"EQ. COMUNICACIÓN Y SEÑALAM.",14]
[537,"EQUIPOS DE TRANSPORTE",14]
[538,"HERRAM., APARATOS E INST. EN GRAL.",14]
[539,"MAQ. EQUIPOS Y HERRAM. MAYORES, VARIOS",14]
[540,"ADQ. DE EQ. OFIC. Y COMP."]
[541,"ADQ. DE MUEBLES Y ENSERES",12]
[542,"ADQ. DE EQUIPOS DE OFICINA",14]
[543,"ADQ. DE EQ. DE COMPUTACION",15]
[544,"ADQ. DE EQ. DE IMPRENTA",14]
[549,"ADQ. DE EQ. OFIC. Y COMP. VARIOS",14]
[550,"ADQ. DE EQ. MILITAR Y DE SEGURIDAD"]
[551,"EQ. MILITAR Y DE SEGURIDAD",14]
[552,"EQ. DE SEGURIDAD INSTITUC.",14]
[559,"EQ. MILITARES Y DE SEG. VARIOS",14]
[560,"ADQ. DE SEMOVIENTES"]
[569,"ADQ. DE SEMOVIENTES",16]
[570,"ADQ. DE ACTIVOS INTANGIBLES "]
[579,"ACTIVOS INTANGIBLES",15]
[580,"ESTUDIOS PROY. INVERSION"]
[581,"SERVICIOS PERSONALES",5]
[582,"SERVICIOS NO PERSONALES",5]
[583,"BIENES DE CONSUMO",5]
[584,"INVERSION FISICA",5]
[585,"INVERSION FINANCIERA",5]
[586,"TRANSFERENCIAS",5]
[587,"OTROS GASTOS",5]
[589,"ESTUDIOS PROY. INVERSION VARIOS",5]
[590,"OTROS GASTOS DE INV. Y REP. MAYORES"]
[591,"INV. EN REC. NAT. AL SECTOR PUB.",16]
[592,"INV. EN REC. NAT. AL SECTOR PRIV.",16]
[593,"OTRAS INVERSIONES",16]
[594,"INDEMNIZACIONES POR INMUEBLES",16]
[595,"REPARAC. MAY. DE INMUEBLES",16]
[596,"REPARAC. MAY. DE EQUIPOS",16]
[597,"REPARAC. MAY. DE MAQ.",16]
[598,"REPARAC. MAY. DE HERRAM. Y OTROS",16]
[599,"OTRAS REPARAC. MAYORES",16]

{"sheet":"Entidades","index":3,"n_rows":76,"n_cols":4,"rows_kept":76,"cut":false,"hidden":true,"merged":[]}
[11,"01",{"$f":"CONCATENATE(A1,\"-\",B1)","v":"11-01"},"CONGRESO NACIONAL"]
[11,"02","11-02","CAMARA DE SENADORES"]
[11,"03","11-03","CAMARA DE DIPUTADOS"]
["12","01","12-01","PRESIDENCIA DE LA REPUBLICA"]
["12","02","12-02","VICEPRESIDENCIA DE LA REPUBLICA"]
["12","03","12-03","MINISTERIO DEL INTERIOR"]
["12","04","12-04","MINISTERIO DE RELACIONES EXTERIORES"]
["12","05","12-05","MINISTERIO DE DEFENSA NACIONAL"]
["12","06","12-06","MINISTERIO DE HACIENDA"]
["12","07","12-07","MINISTERIO DE EDUCACION Y CULTURA"]
["12","08","12-08","MINISTERIO DE SALUD PUBLICA Y BIENESTAR SOCIAL"]
["12","09","12-09","MINISTERIO DE JUSTICIA Y TRABAJO"]
["12","10","12-10","MINISTERIO DE AGRICULTURA Y GANADERIA"]
["12","11","12-11","MINISTERIO DE INDUSTRIA Y COMERCIO"]
["12","13","12-13","MINISTERIO DE OBRAS PUBLICAS Y COMUNICACIONES"]
["13","01","13-01","CORTE SUPREMA DE JUSTICIA"]
["13","02","13-02","JUSTICIA ELECTORAL"]
["13","03","13-03","MINISTERIO PUBLICO"]
["13","04","13-04","CONSEJO DE LA MAGISTRATURA"]
["14","01","14-01","CONTRALORIA GENERAL DE LA REPUBLICA"]
["15","01","15-01","DEFENSORIA DEL PUEBLO"]
["16","01","16-01","TESORO PUBLICO"]
["17","01","17-01","TESORO NACIONAL"]
["21","01","21-01","BANCO CENTRAL DEL PARAGUAY"]
["22","01","22-01","PRIMER DEPARTAMENTO CONCEPCION"]
["22","02","22-02","SEGUNDO DEPARTAMENTO SAN PEDRO"]
["22","03","22-03","TERCER DEPARTAMENTO CORDILLERA"]
["22","04","22-04","CUARTO DEPARTAMENTO GUAIRA"]
["22","05","22-05","QUINTO DEPARTAMENTO CAAGUAZU"]
["22","06","22-06","SEXTO DEPARTAMENTO CAAZAPA"]
["22","07","22-07","SEPTIMO DEPARTAMENTO ITAPUA"]
["22","08","22-08","OCTAVO DEPARTAMENTO MISIONES"]
["22","09",{"$f":"CONCATENATE(A33,\"-\",B33)","v":"22-09"},"NOVENO DEPARTAMENTO PARAGUARI"]
["22","10","22-10","DECIMO DEPARTAMENTO ALTO PARANA"]
["22","11","22-11","UNDECIMO DEPARTAMENTO CENTRAL"]
["22","12","22-12","DUODECIMO DEPARTAMENTO ÑEEMBUCU"]
["22","13","22-13","DECIMOTERCER DEPARTAMENTO AMAMBAY"]
["22","14","22-14","DECIMOCUARTO DEPARTAMENTO CANINDEYU"]
["22","15","22-15","DECIMOQUINTO DEPARTAMENTO PDTE. HAYES"]
["22","16","22-16","DECIMOSEXTO DEPARTAMENTO ALTO PARAGUAY"]
["22","17","22-17","DECIMOSEPTIMO DEPARTAMENTO BOQUERON"]
["23","01","23-01","INSTITUTO NACIONAL DE TECNOLOGIA Y NORMALIZACION (INTN)"]
["23","02","23-02","CONSEJO NACIONAL DE LA VIVIENDA (CONAVI)"]
["23","03","23-03","INSTITUTO NACIONAL DE DESARROLLO RURAL Y DE LA TIERRA (INDERT)"]
["23","04","23-04","DIRECCION DE BENEFICIENCIA NACIONAL (DIBEN)"]
["23","06","23-06","INSTITUTO NACIONAL DEL INDIGENA (INDI)"]
["23","08","23-08","FONDO NACIONAL DE CULTURA Y LAS ARTES (FONDEC)"]
["23","09","23-09","COMISION NACIONAL DE VALORES (CNV)"]
["23","10","23-10","COMISION NACIONAL DE TELECOMUNICACIONES (CONATEL)"]
["23","11","23-11","DIRECCION NACIONAL DE TRANSPORTE (DINATRAN)"]
["23","12","23-12","SECRETARIA DE TRANSPORTE DE AREA METROPOLITANA DE ASUNCION (SETAMA)"]
["23","13","23-13","ENTE REGULADOR DE SERVICIOS SANITARIOS (ERSSAN)"]
["23","14","23-14","INSTITUTO NACIONAL DE COOPERATIVISMO (INCOOP)"]
["23","15",{"$f":"CONCATENATE(A54,\"-\",B54)","v":"23-15"},"DIRECCION NACIONAL DE ADUANAS"]
["23","16",{"$f":"CONCATENATE(A55,\"-\",B55)","v":"23-16"},"SERVICIO NACIONAL DE CALIDAD Y SALUD ANIMAL (SENACSA)"]
["24","01","24-01","INSTITUTO DE PREVISION SOCIAL (IPS)"]
["24","02","24-02","CAJA DE SEGURIDAD SOCIAL DE EMPLEADOS Y OBREROS FERROVIARIOS"]
["24","03","24-03","CAJA DE JUBILACIONES Y PENSIONES DEL PERSONAL DE LA ANDE"]
["24","04","24-04","CAJA DE JUBILACIONES Y PENSIONES DE EMPLEADOS BANCARIOS"]
["24","05","24-05","CAJA DE JUBILACIONES Y PENSIONES DEL PERSONAL MUNICIPAL"]
["25","02","25-02","ADMINISTRACION NACIONAL DE ELECTRICIDAD (ANDE)"]
["25","04","25-04","ADMINISTRACION NACIONAL DE NAVEGACION Y PUERTOS (ANNP)"]
["25","05","25-05","DIRECCION NACIONAL DE AERONAUTICA CIVIL (DINAC)"]
["25","06","25-06","PETROLEOS PARAGUAYOS (PETROPAR)"]
["25","07","25-07","INDUSTRIA NACIONAL DEL CEMENTO (INC)"]
["25","08",{"$f":"CONCATENATE(A66,\"-\",B66)","v":"25-08"},"FERROCARRIL PDTE. CARLOS A. LOPEZ"]
["27","01","27-01","BANCO NACIONAL DE FOMENTO (BNF)"]
["27","02","27-02","BANCO NACIONAL DE AHORRO Y PRESTAMO PARA LA VIVIENDA (BNV)"]
["27","03","27-03","CREDITO AGRICOLA DE HABILITACION (CAH)"]
["27","04","27-04","FONDO GANADERO"]
["27","05","27-05","CAJA DE PRESTAMOS DEL MINISTERIO DE DEFENSA NACIONAL"]
["27","06","27-06","FONDO DE DESARROLLO CAMPENSINO"]
["28","01","28-01","UNIVERSIDAD NACIONAL DE ASUNCION"]
["28","02","28-02","UNIVERSIDAD NACIONAL DEL ESTE"]
["28","03","28-03","UNIVERSIDAD NACIONAL DEL PILAR"]
["28","04","28-04","UNIVERSIDAD NACIONAL DE ITAPUA"]